Cogmind - Beta 12 X4 @@@ ROGUE MODE // 2022.12.18 @ 12:13:11 Player: Lunatic Blue Result: Self-destructed Performance ------------- Evolutions (2) 1000 Regions Visited (7) 1400 Robots Destroyed (75) 375 Value Destroyed (1477) 1477 Prototype IDs (30) 600 Alien Tech Used (0) 0 Bonus (-99) -99 TOTAL SCORE: 4753 Bonus ------- Follower Combat Kills 185 Aligned with FarCom 300 Friendly Fire -584 Cogmind --------- Core Integrity 377/550 Matter 29/300 Energy 100/100 System Corruption 1% Temperature Cool (9) Movement Core (200) Ox3 Location -8/Materials Parts ------- > --- POWER (1) -------- (None) > --- PROPULSION (4) --- Flight Unit > --- UTILITY (3) ------ Medium Storage Unit > --- WEAPON (3) ------- (None) > --- INVENTORY (10) --- Experimental Heat Sink Structural Scanner Makeshift Terrain Scan Processor System Shield Heavy Assault Rifle Rocket Launcher Rocket Launcher Deploy-a-Sentry Peak State ------------ > --- POWER ------------ Reinforced Fission Core > --- PROPULSION ------- Light Treads Makeshift Hover Unit Makeshift Hover Unit > --- UTILITY ---------- Large Storage Unit Light Armor Plating > --- WEAPON ----------- Guided Plasma Cannon Heavy Assault Rifle 8R-AWN's Boregun > --- INVENTORY -------- Light Neutrino Core Experimental Heat Sink Makeshift Terrain Scan Processor System Shield Rocket Launcher Deploy-a-Sentry [Rating: 42] Favorites ----------- Power Cooled Ion Engine Engine Cooled Ion Engine Power Core Light Nuclear Core Reactor Cold Fusion Reactor Propulsion Light Treads Treads Light Treads Wheel Wheel Hover Unit Makeshift Hover Unit Flight Unit Flight Unit Utility High-capacity Storage Unit Device Seismic Detector Storage High-capacity Storage Unit Processor Signal Interpreter Protection Hardened Light Armor Plating Weapon Heavy Assault Rifle Energy Gun Small Laser Energy Cannon Guided Plasma Cannon Ballistic Gun Heavy Assault Rifle Launcher Rocket Launcher Impact Weapon Heavy Flail Build | -11 -10 -10 -9 -9 -9 -8 -8 ------- Run | Scr Mat Min Mat Min Exi Min Mat Slots Evolved 4 | . . . 2 . . . 2 Power . | . . . . . . . . Propulsion 2 | . . . 1 . . . 1 Utility 1 | . . . . . . . 1 Weapon 1 | . . . 1 . . . . Parts Attached 86 | 7 16 3 14 2 39 4 1 Power 14 | 1 2 1 2 . 8 . . Engine 7 | 1 2 . 1 . 3 . . Core 6 | . . 1 1 . 4 . . Reactor 1 | . . . . . 1 . . Propulsion 22 | 2 3 . 3 . 11 3 . Treads 14 | 1 3 . 3 . 7 . . Leg . | . . . . . . . . Wheel 3 | 1 . . . . 2 . . Hover 2 | . . . . . 2 . . Flight 3 | . . . . . . 3 . Utility 19 | 2 5 . 2 . 9 1 . Device 7 | 1 3 . . . 2 1 . Storage 4 | 1 1 . . . 2 . . Processor 1 | . 1 . . . . . . Hackware . | . . . . . . . . Protection 7 | . . . 2 . 5 . . Artifact . | . . . . . . . . Weapon 31 | 2 6 2 7 2 11 . 1 Energy Gun 4 | 2 2 . . . . . . Energy Cannon 2 | . . . . . 2 . . Ballistic Gun 18 | . 3 1 5 1 7 . 1 Ballistic Cannon . | . . . . . . . . Launcher 6 | . 1 1 1 1 2 . . Special Weapon . | . . . . . . . . Impact Weapon 1 | . . . 1 . . . . Slashing Weapon . | . . . . . . . . Piercing Weapon . | . . . . . . . . Special Melee Weapon . | . . . . . . . . Unidentified Prototypes 7 | . . . 2 . 5 . . Parts Lost 20 | . 4 . 3 . 7 1 5 Power 2 | . 1 . . . . . 1 Propulsion 9 | . 2 . 1 . 4 . 2 Utility 5 | . 1 . . . 2 1 1 Weapon 4 | . . . 2 . 1 . 1 Highest Loss Streak 5 | . 2 . 1 . 5 1 3 To Critical Strikes 3 | . . . . . 3 . . Average Slot Usage (%) 94 | . 99 100 98 100 91 64 50 Engine 8 | . 14 8 7 11 6 . . Core 3 | . . 5 3 . 3 11 9 Treads 24 | . 19 28 32 33 21 . . Wheel 1 | . 8 . . . 1 . . Hover 3 | . . . . . 9 . . Flight 1 | . . . . . . 30 19 Device 1 | . 7 . . . 1 9 8 Storage 11 | . 14 14 11 11 10 11 9 Processor 4 | . 6 14 1 . . . . Protection 4 | . . . 9 11 6 . . Energy Gun 1 | . 12 . . . . . . Energy Cannon 1 | . . . . . 3 . . Ballistic Gun 24 | . 15 27 27 33 25 1 4 Naked Turns 7 | . . . . . 7 . . Heaviest Build 64 | 13 51 51 62 62 64 24 19 Greatest Support 60 | 20 40 40 60 60 60 24 12 Greatest Overweight (x) 5 | 1 2 1 1 1 4 5 1 Average Overweight (x) . | . . 1 . 1 . 1 1 Largest Inventory Capacity 20 | 8 20 20 20 20 20 10 10 Average Capacity 17 | 7 13 20 20 20 16 10 10 Most Carried 20 | 6 17 20 20 20 20 10 9 Average Carried 15 | 3 9 19 19 20 11 9 8 Final Capacity 20 | 8 20 20 20 20 10 10 10 Final Carried 20 | 6 17 20 20 20 10 9 8 Class Distribution -------------------- 45% | Mutant 24% | Tank 22% | Scavenger-Mutant 4% | Scavenger-Tank Dominant Class ---------------- Mutant | -10/Materials Mutant | -10/Mines Tank | -9/Materials Tank | -9/Mines Scavenger-Mutant | -9/Exiles Scavenger-Mutant | -8/Mines Scavenger-Mutant | -8/Materials Resources | -11 -10 -10 -9 -9 -9 -8 -8 ----------- Run | Scr Mat Min Mat Min Exi Min Mat Matter Collected 1819 | 270 306 105 381 65 635 57 . Remotely . | . . . . . . . . Salvage Created 2659 | 135 811 193 756 165 542 57 . Parts 198 | 12 49 8 46 8 68 7 . Haulers Intercepted 4 | . 1 . 3 . . . . Recyclers Shooed 4 | 1 . . 3 . . . . Parts Field Recycled . | . . . . . . . . Retrieved Matter . | . . . . . . . . Parts Self-Destructed . | . . . . . . . . Prevented . | . . . . . . . . Kills | -11 -10 -10 -9 -9 -9 -8 -8 ------- Run | Scr Mat Min Mat Min Exi Min Mat Combat Hostiles Destroyed 45 | . 17 2 13 5 5 3 . Guns 29 | . 14 . 9 2 1 3 . AOE 16 | . 3 2 4 3 4 . . Classes Destroyed 15 | 2 7 . 2 1 3 . . Worker 2 | . . . 2 . . . . Builder 2 | . 1 . 1 . . . . Tunneler 5 | 3 2 . . . . . . Hauler 4 | . 1 . 3 . . . . Recycler 3 | 1 . 1 1 . . . . Mechanic 2 | . 1 1 . . . . . Operator 1 | . 1 . . . . . . Turret 1 | . . . . . 1 . . Watcher 1 | . 1 . . . . . . Swarmer 8 | . 3 . . 2 . 3 . Grunt 29 | . 14 2 10 3 . . . Brawler 1 | . . . . 1 . . . Sentry 3 | . . . 3 . . . . Zionite 8 | . . . . . 8 . . Assembled 4 | . . . . . 4 . . Thug 2 | . . 1 1 . . . . Best Kill Streak 5 | 4 5 2 5 3 4 3 . Combat Bots Only 5 | . 5 2 5 3 4 3 . Max Kills in Single Turn 3 | 2 3 2 2 2 2 1 . Gunslinging 1 | . . . . 1 . . . Exploded 2 | . 2 2 2 2 2 . . Melee . | . . . . . . . . Uniques/NPCs Destroyed 4 | . . . . . 4 . . 8R-AWN (-9/Exiles) EX-BIN (-9/Exiles) EX-HEX (-9/Exiles) EX-DEC (-9/Exiles) Combat | -11 -10 -10 -9 -9 -9 -8 -8 -------- Run | Scr Mat Min Mat Min Exi Min Mat Damage Taken 3572 | . 752 120 518 38 1501 160 483 Core 504 | . 79 . 21 7 198 26 173 Absorbed by Shields . | . . . . . . . . Core Remaining (%) 68 | 100 . 68 . . . 37 . Volleys Fired 200 | 5 64 13 36 3 67 5 7 Largest 3 | 2 2 2 3 3 3 1 1 Hottest 120 | 80 90 46 69 79 120 23 30 Shots Fired 418 | 10 123 17 78 7 171 5 7 Gun 394 | 10 121 14 74 5 158 5 7 Cannon 8 | . . . . . 8 . . Launcher 16 | . 2 3 4 2 5 . . Special . | . . . . . . . . Kinetic 311 | . 48 14 74 5 158 5 7 Thermal 91 | 10 73 . . . 8 . . Explosive 16 | . 2 3 4 2 5 . . Electromagnetic . | . . . . . . . . Robot Hit Streak 34 | 3 15 6 18 2 34 2 9 Robot Miss Streak 4 | 1 4 2 2 1 4 1 . Penetration Max . | . . . . . . . . Secondary Targets 5 | . 3 . . 1 1 . . Max Gunslinging Chain 1 | . 1 . . 1 1 . . Shots Hit Robots 295 | 6 84 12 64 2 117 3 7 Core Hits 146 | 5 38 12 34 7 45 4 1 Critical Kills . | . . . . . . . . Critical Parts Destroyed 3 | . . . . . . . 3 Critical Strikes 6 | . 2 . . . . . 4 Burn 2 | . 2 . . . . . . Destroy 4 | . . . . . . . 4 Melee Attacks 14 | . . . 14 . . . . Impact 14 | . . . 14 . . . . Slashing . | . . . . . . . . Piercing . | . . . . . . . . Sneak Attacks 4 | . . . 4 . . . . Combat Hostiles . | . . . . . . . . Follow-up Attacks . | . . . . . . . . Damage Inflicted 6695 | 82 1386 545 1805 246 2414 70 147 Guns 4200 | 82 1097 220 842 31 1727 66 135 Cannons 288 | . . . . . 288 . . Explosions 1656 | . 283 315 447 212 399 . . Melee 474 | . . . 474 . . . . Ramming 77 | . 6 10 42 3 . 4 12 Kinetic 3540 | . 519 220 842 31 1727 66 135 Thermal 948 | 82 578 . . . 288 . . Explosive 1656 | . 283 315 447 212 399 . . Electromagnetic . | . . . . . . . . Impact 474 | . . . 474 . . . . Slashing . | . . . . . . . . Piercing . | . . . . . . . . Highest Corruption 5 | . . . . . 5 5 1 Average Corruption 4 | . . . . . 4 5 1 Corruption Purged . | . . . . . . . . Corruption Blocked . | . . . . . . . . Effects 38 | . . . . . 31 7 . Message Errors 14 | . . . . . 12 2 . Matter Fused 7 | . . . . . 5 2 . Heat Flow Errors 4 | . . . . . 4 . . Energy Discharges 2 | . . . . . 1 1 . Data Loss (minor) 7 | . . . . . 5 2 . Data Loss (major) 1 | . . . . . 1 . . Misfires 1 | . . . . . 1 . . Alerts 1 | . . . . . 1 . . Weapon Failures 1 | . . . . . 1 . . Overload Shots . | . . . . . . . . Overflow Damage 169 | . 15 . 125 . 29 . . Projectiles . | . . . . . . . . Explosions 44 | . 15 . . . 29 . . Melee 125 | . . . 125 . . . . Knockbacks . | . . . . . . . . Impact . | . . . . . . . . Kinetic . | . . . . . . . . Secondary . | . . . . . . . . Self-Inflicted Damage 67 | . 2 32 27 . . 2 4 Shots 2 | . . 1 1 . . . . Rammed 25 | . 4 1 2 1 . 1 16 Targets Rammed 28 | . 4 2 4 1 . 1 16 Kicked . | . . . . . . . . Crushed 3 | . . 1 2 . . . . Highest Temperature 408 | 36 408 5 27 24 275 . 6 Average Temperature 69 | 15 131 3 6 12 54 . 2 Received Heat Transfer 1002 | . 405 51 216 6 9 27 288 Effects 3 | . 3 . . . . . . Shutdowns 1 | . 1 . . . . . . Energy Bleed 1 | . 1 . . . . . . Damage (minor) 1 | . 1 . . . . . . Siege Activations . | . . . . . . . . Robots Corrupted . | . . . . . . . . Combat Hostiles . | . . . . . . . . Parts Fried 2 | . . . 2 . . . . Impact Corruptions 4 | . . . 4 . . . . Robots Melted . | . . . . . . . . Combat Hostiles . | . . . . . . . . Parts Melted 3 | . 3 . . . . . . Heat Transferred 2417 | 175 1602 . . . 640 . . Parts Sabotaged . | . . . . . . . . Parts Stolen . | . . . . . . . . Parts Stripped . | . . . . . . . . Power Chain Reactions . | . . . . . . . . Missiles Intercepted . | . . . . . . . . Alert | -11 -10 -10 -9 -9 -9 -8 -8 ------- Run | Scr Mat Min Mat Min Exi Min Mat Peak Influence 405 | 20 326 157 405 168 . 75 44 Initial 70 | . 13 70 7 41 . . 29 Average 99 | 5 185 58 141 47 . 61 32 Maximum Alert Level 2 | . 1 . 2 . . . . Low Security (%) 82 | 100 56 100 59 100 . 100 100 Level 1 16 | . 43 . 36 . . . . Level 2 . | . . . 3 . . . . Level 3 . | . . . . . . . . Level 4 . | . . . . . . . . Level 5 . | . . . . . . . . High Security . | . . . . . . . . Max Security . | . . . . . . . . Squads Dispatched 10 | . 6 1 3 . . . . Investigation 6 | . 4 . 2 . . . . Extermination . | . . . . . . . . Reinforcement 3 | . 2 . 1 . . . . Assault 1 | . . 1 . . . . . Garrison . | . . . . . . . . Intercept . | . . . . . . . . Searches Triggered . | . . . . . . . . Construction Impeded . | . . . . . . . . Haulers Reinforced . | . . . . . . . . Active Scanning Responses . | . . . . . . . . Cargo Convoy Interrupts . | . . . . . . . . Stealth | -11 -10 -10 -9 -9 -9 -8 -8 --------- Run | Scr Mat Min Mat Min Exi Min Mat Distress Signals 5 | . 3 . 2 . . . . Communications Jammed . | . . . . . . . . Distress Signals . | . . . . . . . . Times Spotted 97 | . 28 8 25 7 19 7 3 Peak Tracking Total 9 | . 5 4 5 3 9 3 3 Tactical Retreats 10 | . 1 . . 1 7 1 . Traps | -11 -10 -10 -9 -9 -9 -8 -8 ------- Run | Scr Mat Min Mat Min Exi Min Mat Traps Triggered 2 | . 2 . . . . . . Indirectly . | . . . . . . . . Trap Hack Attempts . | . . . . . . . . Triggered . | . . . . . . . . Disarmed . | . . . . . . . . Reprogrammed . | . . . . . . . . Reused . | . . . . . . . . Traps Extracted . | . . . . . . . . Installed 1 | . . . 1 . . . . Triggered . | . . . . . . . . Most Traps Carried 3 | . . 3 1 . . . . Exploded 3 | . . . . . 3 . . Machines | -11 -10 -10 -9 -9 -9 -8 -8 ---------- Run | Scr Mat Min Mat Min Exi Min Mat Machines Disabled 10 | . . . 2 . 8 . . Max in Single Turn 2 | . . . 2 . 1 . . Machines Sabotaged . | . . . . . . . . Overloaded Fab Kills . | . . . . . . . . Hacking | -11 -10 -10 -9 -9 -9 -8 -8 --------- Run | Scr Mat Min Mat Min Exi Min Mat Machines Accessed 15 | . 5 1 6 . 2 1 . Terminals 8 | . 3 . 4 . . 1 . Fabricators . | . . . . . . . . Repair Stations . | . . . . . . . . Recycling Units 4 | . 2 . 2 . . . . Scanalyzers . | . . . . . . . . Garrison Access . | . . . . . . . . Total Hacks 33 | . 8 1 20 . 2 2 . Successful 16 | . 5 1 8 . 2 . . Failed 17 | . 3 . 12 . . 2 . Catastrophic 1 | . 1 . . . . . . Database Lockouts . | . . . . . . . . Manual 19 | . 8 . 10 . 1 . . Terminals 23 | . 6 . 15 . . 2 . Fabricators . | . . . . . . . . Repair Stations . | . . . . . . . . Recycling Units 7 | . 2 . 5 . . . . Scanalyzers . | . . . . . . . . Garrison Access . | . . . . . . . . Terminal Hacks 12 | . 3 1 6 . 2 . . Record 1 | . . . . . 1 . . Robot Analysis 3 | . . . 3 . . . . Open Door 1 | . . 1 . . . . . Branch Access Points 2 | . 1 . 1 . . . . Unreport Threat 3 | . 1 . 2 . . . . Zone Layout 1 | . 1 . . . . . . EX-Prototype ID Bank 1 | . . . . . 1 . . Fabricator Hacks . | . . . . . . . . Repair Station Hacks . | . . . . . . . . Recycling Unit Hacks . | . . . . . . . . Scanalyzer . | . . . . . . . . Garrison Access Hacks . | . . . . . . . . Unauthorized Hacks 4 | . 2 . 2 . . . . Terminals . | . . . . . . . . Fabricators . | . . . . . . . . Repair Stations . | . . . . . . . . Recycling Units 4 | . 2 . 2 . . . . Tunnel 4 | . 2 . 2 . . . . Scanalyzers . | . . . . . . . . Garrison Access . | . . . . . . . . Data Cores Recovered . | . . . . . . . . Used . | . . . . . . . . Hacking Detections 10 | . 3 . 6 . . 1 . Full Trace Events . | . . . . . . . . Feedback Events . | . . . . . . . . Feedback Blocked . | . . . . . . . . Robot Schematics Acquired . | . . . . . . . . Robots Built . | . . . . . . . . Authchips . | . . . . . . . . Time . | . . . . . . . . Total Robot Build Rating . | . . . . . . . . Part Schematics Acquired . | . . . . . . . . Parts Built . | . . . . . . . . Authchips . | . . . . . . . . Time . | . . . . . . . . Total Part Build Rating . | . . . . . . . . Parts Repaired . | . . . . . . . . Time . | . . . . . . . . Parts Recycled . | . . . . . . . . Recycled Matter . | . . . . . . . . Retrieved Matter . | . . . . . . . . Retrieved Components . | . . . . . . . . Parts Scanalyzed . | . . . . . . . . Part Schematics Acquired . | . . . . . . . . Parts Damaged . | . . . . . . . . Bothacking | -11 -10 -10 -9 -9 -9 -8 -8 ------------ Run | Scr Mat Min Mat Min Exi Min Mat Used RIF Installer . | . . . . . . . . Robots Hacked . | . . . . . . . . Non-combat . | . . . . . . . . Combat . | . . . . . . . . Robot Hacks Applied . | . . . . . . . . Relay Couplers Released . | . . . . . . . . Fabnet Peak Effective % . | . . . . . . . . Robots Rewired . | . . . . . . . . Allies Hacked . | . . . . . . . . Hacks Repelled . | . . . . . . . . Allies | -11 -10 -10 -9 -9 -9 -8 -8 -------- Run | Scr Mat Min Mat Min Exi Min Mat Total Allies 4 | . . 1 . 3 . . . Largest Group 3 | . . 1 1 3 . . . Highest-Rated Group 40 | . . 31 31 40 . . . Highest-Rated Ally 31 | . . 31 31 16 . . . Total Orders . | . . . . . . . . Ally Attacks 24 | . . 10 5 9 . . . Total Damage 297 | . . 172 62 63 . . . Kills 7 | . . 4 2 1 . . . Allies Corrupted . | . . . . . . . . Allies Melted . | . . . . . . . . Intel | -11 -10 -10 -9 -9 -9 -8 -8 ------- Run | Scr Mat Min Mat Min Exi Min Mat Robot Analysis Total 3 | . . . 3 . . . . Derelict Logs Recovered 2 | . . 1 . 1 . . . Drone Launches . | . . . . . . . . Drone Recoveries . | . . . . . . . . Exploration | -11 -10 -10 -9 -9 -9 -8 -8 ------------- Run | Scr Mat Min Mat Min Exi Min Mat Turns Passed 6876 | 80 921 1610 1104 686 2110 256 109 Spaces Moved 3172 | 55 406 647 521 281 1036 204 22 Core 18 | 11 . . . . 7 . . Treads 2156 | 2 265 647 521 281 440 . . Legs . | . . . . . . . . Wheels 196 | 42 141 . . . 13 . . Hover 581 | . . . . . 576 5 . Flight 221 | . . . . . . 199 22 Fastest Speed 50 | 50 95 240 160 240 50 71 114 Average Speed 185 | 85 163 240 173 240 172 115 114 Slowest Speed 440 | 160 320 240 240 240 240 440 114 Overloaded Moves . | . . . . . . . . Propulsion Burnouts . | . . . . . . . . Robots Hopped . | . . . . . . . . Cave-ins Triggered . | . . . . . . . . Exploration Rate (%) 50 | 4 60 98 46 52 89 52 5 Regions Visited 7 Branch Regions 4 Pre-discovered Areas 6 | . 2 . 2 1 1 . . Known Exits Taken 3 | . 1 1 1 . . . . Unknown Exits Taken 4 | 1 . . . 1 1 1 . Scrap Searched 1 | . . 1 . . . . . Spaces Dug 10 | . . . . 10 . . . Terrain Destroyed 109 | . 16 29 23 17 20 . 4 Melee . | . . . . . . . . Projectile 4 | . . . . . . . 4 AOE 105 | . 16 29 23 17 20 . . Terrain Rammed . | . . . . . . . . Walls Destroyed . | . . . . . . . . Machines Disabled . | . . . . . . . . Actions | -11 -10 -10 -9 -9 -9 -8 -8 --------- Run | Scr Mat Min Mat Min Exi Min Mat Total 3737 | 74 543 687 635 286 1233 220 59 Wait 78 | 2 13 12 10 . 25 3 13 Move 3165 | 54 405 646 520 280 1035 203 22 Hop . | . . . . . . . . Pick Up 78 | 6 23 6 17 . 26 . . Fast Attach 42 | 7 5 1 4 . 22 3 . Attach 20 | . 5 . 4 . 9 1 1 Detach 6 | . 1 . . . 5 . . Swap 24 | . 6 2 6 2 8 . . Drop 81 | . 17 5 19 . 36 4 . Fire 200 | 5 64 13 36 3 67 5 7 Melee 14 | . . . 14 . . . . Ram 19 | . 2 . . . . 1 16 Kick . | . . . . . . . . Crush 9 | . 2 2 4 1 . . . Escape Stasis . | . . . . . . . . Rewire . | . . . . . . . . Trap 1 | . . . 1 . . . . Miscellaneous . | . . . . . . . . Route ------- -11/Scrapyard -10/Materials (discovered 2 exits: *Mat / *Min) -10/Mines (discovered 2 exits: *Mat x2) -9/Materials -9/Mines (discovered 2 exits: [*Mat] / *Exi) -9/Exiles -8/Mines -8/Materials History --------- Turn | Location | Event 10 | -11/Scrapyard | Discovered new exit (range 15) 81 | -11/Scrapyard | Entered Materials 314 | -10/Materials | Build established: Mutant 538 | -10/Materials | Identified exit to Mines 867 | -10/Materials | Discovered new exit (range 8) 1002 | -10/Materials | Entered Mines 1103 | -10/Mines | Found a hidden stash of uninstalled traps 1112 | -10/Mines | Met a Derelict bent on vengeance 1130 | -10/Mines | Discovered new exit (range 15) 1373 | -10/Mines | Found the Drone Emporium 1385 | -10/Mines | Found Prototype Device 1431 | -10/Mines | Learned Materials terminal intel 1863 | -10/Mines | Discovered new exit (range 9) 1871 | -10/Mines | Met a Derelict testing a Signal Generator 2607 | -10/Mines | Identified exit to Materials 2612 | -10/Mines | Entered Materials 2612 | -9/Materials | Accompanied by 1 ally 2612 | -9/Materials | Evolved 2 slots: Propulsion x1, Weapon x1 2613 | -9/Materials | Loaded intel: 12 terminal locations 3023 | -9/Materials | Identified exit to Mines 3561 | -9/Materials | Build established: Tank 3716 | -9/Materials | Entered Mines 3776 | -9/Mines | Assisted by bots powering up and referring to "LRC-V3" 3976 | -9/Mines | Discovered new exit (range 4) 4381 | -9/Mines | Learned location of Storage (-7) 4390 | -9/Mines | Deemed a non-threat by the Exiles lab entrance 4393 | -9/Mines | Discovered new exit (range 5) 4402 | -9/Mines | Entered Exiles 4467 | -9/Exiles | Met 8R-AWN 4505 | -9/Exiles | Met EX-HEX 4577 | -9/Exiles | Met EX-BIN 4611 | -9/Exiles | Aligned with FarCom system 4613 | -9/Exiles | Given EX-Vault access code 4669 | -9/Exiles | Opened EX-Vault 4683 | -9/Exiles | Found Gui. Plasma Cannon 4735 | -9/Exiles | Warned to stay clear of 0b10 Research branches 4797 | -9/Exiles | Met EX-DEC 4809 | -9/Exiles | Learned location of Zion (-6) 4901 | -9/Exiles | Attacked by the Exiles 5061 | -9/Exiles | Destroyed 8R-AWN 5076 | -9/Exiles | Lost 5 parts (3n2u) 5078 | -9/Exiles | Found Prototype Processor 5081 | -9/Exiles | Found Prototype Ballistic Gun 5303 | -9/Exiles | Destroyed EX-BIN 5353 | -9/Exiles | Core integrity fell below 50% 5369 | -9/Exiles | Destroyed EX-HEX 5437 | -9/Exiles | Destroyed EX-DEC 5586 | -9/Exiles | Identified 8R-AWN's Boregun 5848 | -9/Exiles | Build established: Scavenger-Mutant 6163 | -9/Exiles | Found Deploy-a-Sentry 6503 | -9/Exiles | Discovered new exit (range 14) 6512 | -9/Exiles | Left Exiles lab with Deploy-a-Sentry 6512 | -9/Exiles | Entered Mines 6758 | -8/Mines | Discovered new exit (range 7) 6768 | -8/Mines | Entered Materials 6768 | -8/Materials | Evolved 2 slots: Propulsion x1, Utility x1 6877 | -8/Materials | Self-destructed Last Messages --------------- 06843_ Y-45 Defender suffers critical hit (Destroy). 06843_ HV Slug penetrates Wall. 06845_ Slammed into Y-45 Defender. 06854_ HV Slug penetrates Y-45 Defender. 06854_ Y-45 Defender suffers critical hit (Destroy). 06854_ Destroyed Lgt. Treads. 06854_ HV Slug penetrates Wall. 06856_ Slammed into Y-45 Defender. 06860_ HV Slug penetrates Y-45 Defender. 06860_ Y-45 Defender suffers critical hit (Destroy). 06860_ Destroyed Lgt. Treads. 06860_ HV Slug penetrates Wall. 06862_ Slammed into Y-45 Defender. 06863_ Critical hit (Burn: +37). 06867_ Slammed into Y-45 Defender. 06867_ Destabilizing: System corrupted (+1). 06869_ Seismic Detector destroyed. 06871_ Lgt. Neutrino Core destroyed. 06871_ Slammed into Y-45 Defender. 06875_ 8R-AWN's Boregun destroyed. Map ----- +----------------------------------------------------+ | | | | | | | | | | | | | | | | | | | | | | | | | | | | | | | | | | | | | | | | | | | ????????????????????????######???????????????????? | | ???????????????????????# #???????????????????? | | ???????????????######### "" #???????????????????? | | ???????????????# ##Y""" #???????????????????? | | ???????????????# """ ## @S" #???????????????????? | | ???????????????# """ ## """ #???????????????????? | | ???????????????# """ #; """ #???????????????????? | | ???????????????# ## #???????????????????? | | ????????????????? ?#! #######?????????????? | | ???????????????####+######+###] ####??????????? | | ???????????????# ???? | | ???????????????# ???? | | ???????????????# ???? | | ???????????????###### ######## ##########????? | | ??????????????????? #??????## ##?????????????? | | ?????????????????? ###???????? " ?????????????? | | ?????????????????##???????????? # "????????????? | | ??????????????????????????????? + ???????????? | | ??????????????????????????????? # ??????????? | | ??????????????????????????????? #?##???????????? | | ??????????????????????????????? #??????????????? | | ??????????????????????????????? ??????????????? | | ???????????????????????????????? ??????????????? | | ???????????????????????????????? ?????????????? | | ???????????????????????????????? ??????????????? | | ???????????????????????????????? ????????????????? | | ?????????????????????????????????????????????????? | | ?????????????????????????????????????????????????? | | ?????????????????????????????????????????????????? | +----------------------------------------------------+ Best States ------------- Heat Dissipation 54 Energy Generation 19 Energy Capacity 310 Matter Stores 300 Matter Capacity 300 Sight Range 16 Terrain Scan Range 16 Terrain Scan Density 10 Armor Coverage 150 Evasion (%) 51 Recoil Reduction 3 Item Schematics ----------------- None Robot Schematics ------------------ None Fabricated ------------ Nothing Alien Tech Used ----------------- None Achievements -------------- None Challenges ------------ None Game ------ Seed ScatterProtonWand Manual? 0 Play Time 00:42:32 Cumulative 147.6 hours Start 2022.12.18 @ 11:29:56 End 2022.12.18 @ 12:13:11 Sessions 1 Manual Loads 0 Difficulty Rogue Special Mode None Game No. 244 Rogue 244 Adventurer 0 Explorer 0 Win Type - Total 2 Types 1/0/1/0/0/0/0/0/0 Lore% 66 Gallery% 74 Achievement% 53 Wizard Run 0 Options --------- ASCII 0 Keyboard 0 Movement Mouse Keybinds 0 Fullscreen 1 Font 18/SmallcapsGlow Map View 76x50 Tactical HUD 1 Map Filters NONE Filters NONE Steam 1 RUN: 96a21af0-aa07-45a6-af35-b95a9d7640e1